{"text_format":"1","workbook":"xlsx","n_sheets":5,"sheets":["通知書式","（参考）記載イメージ","ツール処理シート","補記シート","祝日一覧"],"not_rendered":{"charts":0,"images":0,"macros":1,"external_links":0,"defined_names":4,"comments":2,"pivot_tables":0},"unopened":[],"bounds":{"document_bytes":16777216,"sheet_cells":100000,"rows_first":2000,"rows_last":500,"rows_between":2000,"halvings":0,"cell_chars":16384,"cell_head_chars":4096},"cells_cut":0,"cells_raw":0,"read":"whole","date_system":"1900"}

{"sheet":"通知書式","index":0,"n_rows":41,"n_cols":43,"rows_kept":41,"cut":false,"hidden":false,"merged":[[40,1,40,15],[39,1,39,15],[39,16,39,27],[40,16,40,27],[22,0,23,12],[22,13,23,40],[40,28,40,39],[22,42,23,75],[39,28,39,39],[36,1,38,39],[32,1,34,39],[21,0,21,12],[21,42,21,75],[21,32,21,40],[21,13,21,17],[21,27,21,31],[21,18,21,26],[26,42,27,75],[28,42,35,75],[3,0,4,40],[5,9,5,32],[6,26,6,40],[18,0,18,12],[18,13,18,40],[9,26,9,40],[9,20,9,25],[11,26,11,40],[12,26,12,40],[13,26,13,40],[10,20,10,25],[11,20,11,25],[12,20,12,25],[13,20,13,25],[20,13,20,40],[19,0,20,12],[19,13,19,17],[19,18,19,40],[19,42,20,75],[16,42,17,75],[18,42,18,75],[6,20,6,25],[10,26,10,30],[10,31,10,35],[10,36,10,40]]}
[null,null,null,null,null,null,null,null,null,null,null,null,null,null,null,null,null,null,null,null,null,null,null,null,null,null,null,null,null,null,null,null,null,null,null,null,null,null,null,null,"ST98-17-02"]
[null,null,null,null,null,null,null,null,null,null,null,null,null,null,null,null,null,null,null,null,null,null,null,null,null,null,null,null,null,null,null,null,null,null,null,null,null,null,null,null,"2024年6月24日版"]
[]
["届出事項変更（商号の変更）"]
[]
[]
[null,null,null,null,null,null,null,null,null,null,null,null,null,null,null,null,null,null,null,null,"提出日"]
[]
["株式会社証券保管振替機構　御中"]
[null,null,null,null,null,null,null,null,null,null,null,null,null,null,null,null,null,null,null,null,"会社名"]
[null,null,null,null,null,null,null,null,null,null,null,null,null,null,null,null,null,null,null,null,"銘柄コード",null,null,null,null,null,null,null,null,null,null,"株式の種類※",null,null,null,null,"普通株式"]
[null,null,null,null,null,null,null,null,null,null,null,null,null,null,null,null,null,null,null,null,"連絡者部署"]
[null,null,null,null,null,null,null,null,null,null,null,null,null,null,null,null,null,null,null,null,"連絡者氏名"]
[null,null,null,null,null,null,null,null,null,null,null,null,null,null,null,null,null,null,null,null,"電話番号"]
[null,null,null,null,null,null,null,null,null,null,null,null,null,null,null,null,null,null,null,null,"※　通知対象の振替株式の種類を選択してください。"]
[]
["　届出事項変更について、以下の事項を通知します。",null,null,null,null,null,null,null,null,null,null,null,null,null,null,null,null,null,null,null,null,null,null,null,null,null,null,null,null,null,null,null,null,null,null,null,null,null,null,null,null,null,"記載上の注意事項"]
[]
["１．変更日",null,null,null,null,null,null,null,null,null,null,null,null,null,null,null,null,null,null,null,null,null,null,null,null,null,null,null,null,null,null,null,null,null,null,null,null,null,null,null,null,null,"・商号の変更に係る効力発生日を記載してください。"]
["２．変更後の商号\n　（登記上の商号を記載）",null,null,null,null,null,null,null,null,null,null,null,null,"（フリガナ）",null,null,null,null,null,null,null,null,null,null,null,null,null,null,null,null,null,null,null,null,null,null,null,null,null,null,null,null,"登記上の商号を正確に記載してください。\n・半角文字は全角に変換されます。また、法人格（株式会社）の前後にスペースを入れることはできません。\n・通知いただいた「変更後の商号」は手数料請求書の表示にも使用します。"]
[]
["３．適時開示",null,null,null,null,null,null,null,null,null,null,null,null,"開示日",null,null,null,null,null,null,null,null,null,null,null,null,null,"開示時間",null,null,null,null,null,null,null,null,null,null,null,null,null,null,"当該事項に関する適時開示の日時を記載してください。ただし、本通知書の添付資料として開示資料（PDFファイル）を併せて提出する場合には、記載不要です。"]
["４．備考",null,null,null,null,null,null,null,null,null,null,null,null,null,null,null,null,null,null,null,null,null,null,null,null,null,null,null,null,null,null,null,null,null,null,null,null,null,null,null,null,null,"・金融商品取引所に届け出ている銘柄名称が「２．変更後の商号」と異なる場合には、金融商品取引所に届け出ている銘柄名称について、法人格も含め、備考欄に記載してください。"]
[]
[null,null,null,null,null,null,null,null,null,null,null,null,null,null,null,null,null,null,null,null,null,null,null,null,null,null,null,null,null,null,null,null,null,null,null,null,null,null,null,null,"以上 "]
[]
[null,null,null,null,null,null,null,null,null,null,null,null,null,null,null,null,null,null,null,null,null,null,null,null,null,null,null,null,null,null,null,null,null,null,null,null,null,null,null,null,null,null,"通知した内容に変更が生じた場合の対応"]
[]
[null,null,null,null,null,null,null,null,null,null,null,null,null,null,null,null,null,null,null,null,null,null,null,null,null,null,null,null,null,null,null,null,null,null,null,null,null,null,null,null,null,null,"本通知書提出後に、通知した内容（「未定」として通知した内容を含む）に変更が生じた場合には、提出日欄、該当項目欄を更新し、備考欄に変更が生じた旨を記載のうえ、本通知書を再度提出してください。\n・通知内容の変更に係る適時開示をされている場合には、当該適時開示の日時についても備考欄に記載してください。\n\n＜例＞\nXXXX年XX月XX日提出分について「○．○○○（項目名）」の通知内容を「○○」から「○○」に変更します（適時開示日時：XXXX年XX月XX日 15:30）。"]
[]
[]
[]
[null,"※　当機構は、本通知書に記載された個人情報を、「社債、株式等の振替に関する法律」に基づき主務大臣から認可された業務を円滑に遂行するため、また、本通知書に基づく担当者と当機構との間の事務連絡を行うため、利用させていただきます。\n※　当機構の取り扱う個人情報、当機構の個人情報保護方針など当機構の個人情報保護に関する事項は、当機構ホームページに掲載されておりますので、適宜参照してください。"]
[]
[]
[]
[null,"（提出方法）\nTargetほふりサイト（https://portal.arrowfront.jp/target/x/jsdlcs/webportal/top.html）のトップ画面で「書類を提出する」メニューを選択し、「提出書類の登録」画面において以下の内容を選択又は記入のうえExcelファイルで提出してください。\nなお、Targetほふりサイトに本通知書を提出する場合には、押印は不要です。"]
[]
[]
[null,"該当の「提出」ボタン",null,null,null,null,null,null,null,null,null,null,null,null,null,null,"選択する通知事項",null,null,null,null,null,null,null,null,null,null,null,"（その他通知事項）の記載内容"]
[null,"（コーポレートアクション等に関する通知書）\n株式及び優先出資",null,null,null,null,null,null,null,null,null,null,null,null,null,null,"届出事項の変更",null,null,null,null,null,null,null,null,null,null,null,"（記入不要です。）"]

{"sheet":"（参考）記載イメージ","index":1,"n_rows":41,"n_cols":41,"rows_kept":41,"cut":false,"hidden":false,"merged":[[40,1,40,15],[40,16,40,27],[40,28,40,39],[22,0,23,12],[22,13,23,40],[32,1,34,39],[36,1,38,39],[39,1,39,15],[39,16,39,27],[39,28,39,39],[19,0,20,12],[19,13,19,17],[19,18,19,40],[20,13,20,40],[21,0,21,12],[21,13,21,17],[21,18,21,26],[21,27,21,31],[21,32,21,40],[13,20,13,25],[13,26,13,40],[18,0,18,12],[18,13,18,40],[11,20,11,25],[11,26,11,40],[12,20,12,25],[12,26,12,40],[10,20,10,25],[3,0,4,40],[5,9,5,32],[6,20,6,25],[6,26,6,40],[9,20,9,25],[9,26,9,40],[10,26,10,30],[10,31,10,35],[10,36,10,40]]}
[null,null,null,null,null,null,null,null,null,null,null,null,null,null,null,null,null,null,null,null,null,null,null,null,null,null,null,null,null,null,null,null,null,null,null,null,null,null,null,null,"ST98-17-02"]
[null,null,null,null,null,null,null,null,null,null,null,null,null,null,null,null,null,null,null,null,null,null,null,null,null,null,null,null,null,null,null,null,null,null,null,null,null,null,null,null,"2023年5月22日版"]
[]
["届出事項変更（商号の変更）"]
[]
[]
[null,null,null,null,null,null,null,null,null,null,null,null,null,null,null,null,null,null,null,null,"提出日",null,null,null,null,null,"2021年11月XX日"]
[]
["株式会社証券保管振替機構　御中"]
[null,null,null,null,null,null,null,null,null,null,null,null,null,null,null,null,null,null,null,null,"会社名",null,null,null,null,null,"株式会社ほふり工業"]
[null,null,null,null,null,null,null,null,null,null,null,null,null,null,null,null,null,null,null,null,"銘柄コード",null,null,null,null,null,"XXXX",null,null,null,null,"株式の種類※",null,null,null,null,"普通株式"]
[null,null,null,null,null,null,null,null,null,null,null,null,null,null,null,null,null,null,null,null,"連絡者部署",null,null,null,null,null,"総務部"]
[null,null,null,null,null,null,null,null,null,null,null,null,null,null,null,null,null,null,null,null,"連絡者氏名",null,null,null,null,null,"ほふり太郎"]
[null,null,null,null,null,null,null,null,null,null,null,null,null,null,null,null,null,null,null,null,"電話番号",null,null,null,null,null,"03-1234-5678"]
[null,null,null,null,null,null,null,null,null,null,null,null,null,null,null,null,null,null,null,null,"※　通知対象の振替株式の種類を選択してください。"]
[]
["　届出事項変更について、以下の事項を通知します。"]
[]
["１．変更日",null,null,null,null,null,null,null,null,null,null,null,null,"2022年1月XX日"]
["２．変更後の商号\n　（登記上の商号を記載）",null,null,null,null,null,null,null,null,null,null,null,null,"（フリガナ）",null,null,null,null,"ホフリデンキコウギョウカブシキガイシャ"]
[null,null,null,null,null,null,null,null,null,null,null,null,null,"保振電気工業株式会社"]
["３．適時開示",null,null,null,null,null,null,null,null,null,null,null,null,"開示日",null,null,null,null,"2021年11月XX日",null,null,null,null,null,null,null,null,"開示時間",null,null,null,null,"15:00:00"]
["４．備考"]
[]
[null,null,null,null,null,null,null,null,null,null,null,null,null,null,null,null,null,null,null,null,null,null,null,null,null,null,null,null,null,null,null,null,null,null,null,null,null,null,null,null,"以上 "]
[]
[]
[]
[]
[]
[]
[]
[null,"※　当機構は、本通知書に記載された個人情報を、「社債、株式等の振替に関する法律」に基づき主務大臣から認可された業務を円滑に遂行するため、また、本通知書に基づく担当者と当機構との間の事務連絡を行うため、利用させていただきます。\n※　当機構の取り扱う個人情報、当機構の個人情報保護方針など当機構の個人情報保護に関する事項は、当機構ホームページに掲載されておりますので、適宜参照してください。"]
[]
[]
[]
[null,"（提出方法）\nTargetほふりサイト（https://portal.arrowfront.jp/target/x/jsdlcs/webportal/top.html）のトップ画面で「書類を提出する」メニューを選択し、「提出書類の登録」画面において以下の内容を選択又は記入のうえ提出してください。\nなお、Targetほふりサイトに本通知書を提出する場合には、押印は不要です。"]
[]
[]
[null,"該当の「提出」ボタン",null,null,null,null,null,null,null,null,null,null,null,null,null,null,"選択する通知事項",null,null,null,null,null,null,null,null,null,null,null,"（その他通知事項）の記載内容"]
[null,"（コーポレートアクション等に関する通知書）\n株式及び優先出資",null,null,null,null,null,null,null,null,null,null,null,null,null,null,"届出事項の変更",null,null,null,null,null,null,null,null,null,null,null,"（記入不要です。）"]

{"sheet":"ツール処理シート","index":2,"n_rows":72,"n_cols":23,"rows_kept":72,"cut":false,"hidden":true,"merged":[[9,14,9,15],[9,16,9,19]]}
[]
[null,"＜基本情報＞"]
[null,"届出書名"]
[null,"対象E","法人"]
[null,"Excel上データ開始行",13]
[null,"Excel上データ終了行",72]
[]
[null,"＜届出事項＞"]
[null,null,null,null,"ツール処理対象範囲",null,null,null,null,null,"共通参考情報",null,null,null,"目的地等参考情報"]
[null,"#","項目名","手入力項目フラグ","データ種別","登録先DB","行順序","列番号","登録値","備考","ソース種別","届出書上のExcelによる制御","ツール処理シート上のExcelによる制御","備考","CO",null,"マス管",null,null,null,"マス管条件必須時の条件","１届出書における最大届出数","備考"]
[]
[null,null,"＊届出書のツール読込シートに表示する項目名。","＊マスタ管理システムに手入力する際に必要となる可能性のある項目は〇。それ以外は-。","T：登録値の内容をそのまま（Null値はNull値として、Null以外は登録値を）CSV化する。（スルーのT。）\nN：登録値がNullの場合は、現在DBから値を採用する。登録値がNull以外の場合は、その値を採用する。（フラグ「なし」のN。）\nA：\"N\"と同じ処理を行い、さらに、登録値がNull以外の場合は、当該項目の直前に位置するフィールドに、\"*\"を入力する。（フラグ「あり」のA。）\nF：なにもしない。（フラグのF。）","＊COにおける登録先DBのDBコード。","＊同一のツール処理シートから複数のCO登録用レコードを生成する場合の、レコード識別用番号。","＊CO登録用CSVファイル上のフィールド順序。","＊実際に登録する値。補記が必要な項目はここで補記する。","自由記入欄","規定：原則規定値。場合によっては規定値と異なる値を設定する。\n届出：届出された内容または届出された内容を変換して取得するフラグ。\n補記：機構が補記する。\nコピー：設計情報上の他の登録値をコピーして充足する。","＊届出書上で、Excelの条件付書式等を利用して行う予定の制御内容。","＊ツール処理シート上で、Excelの関数又は条件付書式等を利用して行う予定の制御又はツール処理シート上に記載する規定値の内容","自由記入欄","データ長","対象DB","登録種別","対象E","データ長","属性","＊業務ではなく、あくまでマス管のシステム要件。","＊１届出書において届け出をさせる最大個数。主に口座関係の届出時に、口座番号が複数個届出される場合を想定。","自由記入欄"]
[null,{"$f":"ROW()-12","v":1},"COレコード番号","-","T","db26",1,1,null,null,"規定","届出非表示項目","規定値（\"\"(Null値))","COのDBを上書きする際に、対象レコードを特定するための項目。","-","-","対象外","-","-","-",null,1]
[null,{"$f":"ROW()-12","v":2},"CO登録日時","-","T","db26",1,2,null,null,"規定","届出非表示項目","規定値（\"\"(Null値))","COレコード番号を生かすために必要なCOデータベースのフィールド枠。","-","-","対象外","-","-","-",null,1]
[null,3,"CO登録者","-","T","db26",1,3,null,null,"規定","届出非表示項目","規定値（\"\"(Null値))","COレコード番号を生かすために必要なCOデータベースのフィールド枠。","-","-","対象外","-","-","-",null,1]
[null,4,"CO更新日時","-","T","db26",1,4,null,null,"規定","届出非表示項目","規定値（\"\"(Null値))","COレコード番号を生かすために必要なCOデータベースのフィールド枠。","-","-","対象外","-","-","-",null,1]
[null,5,"CO更新者","-","T","db26",1,5,null,null,"規定","届出非表示項目","規定値（\"\"(Null値))","COレコード番号を生かすために必要なCOデータベースのフィールド枠。","-","-","対象外","-","-","-",null,1]
[null,6,"データレコード識別区分","-","T","db26",1,6,600000,null,"規定","届出非表示項目","規定値（\"600000\"）",null,6,"法人","必須","法人",6,9,null,1]
[null,7,"操作区分","-","T","db26",1,7,"INS",null,"規定","届出非表示項目","規定値（\"INS\")",null,3,"法人","必須","法人",3,"Ca",null,1]
[null,8,"会社コード","〇","T","db26",1,8,{"$f":"IF(INDIRECT(\"補記シート!D18\")=\"\",\"\",INDIRECT(\"補記シート!D18\"))","v":""},null,"補記","届出非表示項目","[入力規則]\n・7桁\n・下２桁は00のみを許容",null,7,"法人","必須","法人",7,"C",null,1]
[null,9,"適用開始年月日（マス管用）","〇","T","db26",1,9,{"$f":"IF(OR(WEEKDAY(通知書式!N19,2)>=6,COUNTIF(祝日一覧!$A$1:$A$608,通知書式!N19)>=1),TEXT(WORKDAY(通知書式!N19,1,祝日一覧!A1:A606),\"YYYYMMDD\"),TEXT(INDIRECT(\"通知書式!N19\"),\"YYYYMMDD\"))","v":"19000102"},null,"補記","届出非表示項目","[入力規則]\n・数字のみ\n・８桁",null,8,"法人","必須","法人",8,9,null,1]
[null,10,"更新区分","-","T","db26",1,10,2,null,"届出","[入力規則]\nプルダウンによる選択（新規or変更）","[関数]\n届出書上の該当箇所が「新規」なら1、「変更」なら2、ブランクならNull値を設定。",null,1,"法人","必須","法人",1,9,null,1]
[null,11,"項目変更フラグ（利用開始日（マス管用））","-","F","db26",1,11,null,null,"規定","届出非表示項目","規定値（\"\"(Null値))",null,1,"法人","任意","法人",1,"Cb",null,1]
[null,12,"利用開始年月日（マス管用）","〇","A","db26",1,12,null,null,"届出","[入力規則]\n・数字のみ\n・８桁","[関数]\n届出書上の更新区分が「新規」なら、届出書上の「適用日」を転記する。「新規」以外の場合には、Null値とする。",null,8,"法人","条件必須","法人",8,9,"以下の条件を満たす場合、入力必須。\n・更新区分＝「1」（新規）\n・操作区分＝「INS」（登録）",1]
[null,13,"項目変更フラグ（利用終了年月日（マス管用））","-","F","db26",1,13,null,null,"規定","届出非表示項目","規定値（\"\"(Null値))",null,1,"法人","任意","法人",1,"Cb",null,1]
[null,14,"利用終了年月日（マス管用）","〇","A","db26",1,14,29991231,null,"規定","届出非表示項目","規定値（\"29991231\")","機構と完全に縁を切る場合にのみ本フィールドに29991231以外が適用されることを想定。ただし、その場合には人間の手作業によるオペレーションのため、本項目は規定値29991231を設定する以外には使用しない。",8,"法人","任意","法人",8,9,null,1]
[null,15,"項目変更フラグ（新会社コード）","-","F","db26",1,15,null,null,"規定","届出非表示項目","規定値（\"\"(Null値))",null,1,"法人","任意","法人",1,"Cb",null,1]
[null,16,"新会社コード","〇","A","db26",1,16,null,null,"補記","届出非表示項目","[入力規則]\n・7桁\n・下２桁は00のみを許容","・脱退対象の法人が脱退時に合併機能を利用する場合には、入力必須。\n・それ以外の場合は不要。",7,"法人","任意","法人",7,"C",null,1]
[null,17,"項目変更フラグ（組織名称）","-","F","db26",1,17,null,null,"規定","届出非表示項目","規定値（\"\"(Null値))",null,1,"法人","任意","法人",1,"Cb",null,1]
[null,18,"商号又は名称","〇","A","db26",1,18,{"$f":"DBCS(INDIRECT(\"通知書式!N21\"))","v":""},null,"届出","[入力規則]\n全角100文字以内","[関数]\n届出書上の該当箇所を転記する。","「株式会社」等を含めて100文字以内。\nPSMSの一部参加形態（投資顧問）については、商号の後ろに形態（例：○○アセット（投資顧問））を記載し、同一法人につき複数の法人Eが保持されることとなる。\n【桁数について備考】\n元々30桁の運用制限を設ける予定だったが、正式名称を機械的に短縮することにより、マス管から連動されるHP制度参加者一覧や口座簿の名称（FIAMIはないが）への影響勘案し、運用制限を撤廃することとする。\n30桁を超過するのは主にFIAMIが想定されるが、間接口座管理機関であり、現行マスタのないSBCPシステム側では30桁超過しても空振りで問題ないと思慮。\nTMIで使用しているSB代理人名称については、コードと名称の紐づけを行う際の機能で30桁制限あるとのことだが、30桁名称の代理人銀行は存在しないので運用対応できる認識。",100,"法人","条件必須","法人",100,"N","以下を全て満たす場合、入力必須。\n・更新区分＝「1」(新規)\n・操作区分＝「INS」(登録)",1]
[null,19,"項目変更フラグ（組織略称）","-","F","db26",1,19,null,null,"規定","届出非表示項目","規定値（\"\"(Null値))",null,1,"法人","任意","法人",1,"Cb",null,1]
[null,20,"組織略称","〇","A","db26",1,20,null,null,"届出","[入力規則]\n全角8文字","[関数]\n届出書上の該当箇所を転記する。","全参加者に記載させる。",8,"法人","任意","法人",8,"N",null,1]
[null,21,"項目変更フラグ（組織英字名称）","-","F","db26",1,21,null,null,"規定","届出非表示項目","規定値（\"\"(Null値))",null,1,"法人","任意","法人",1,"Cb",null,1]
[null,22,"組織英字名称","〇","A","db26",1,22,null,null,"届出","[入力規則]\n・140桁以内\n・半角のみ","[関数]\n届出書上の該当箇所を転記する。","半角英大文字・数字・一部記号のみ許容\n一部記号は、次のものを許容（マスタ管理システムの文字種定義と同一。）\n+、-、,、:、.、(、)、/、'、?及び半角スペース ",140,"法人","任意","法人",140,"Ci",null,1]
[null,23,"項目変更フラグ（組織カナ名称）","-","F","db26",1,23,null,null,"規定","届出非表示項目","規定値（\"\"(Null値))",null,1,"法人","任意","法人",1,"Cb",null,1]
[null,24,"組織カナ名称","〇","A","db26",1,24,{"$f":"SUBSTITUTE(SUBSTITUTE(SUBSTITUTE(SUBSTITUTE(SUBSTITUTE(SUBSTITUTE(ASC(INDIRECT(\"通知書式!S20\")),\"ｶﾌﾞｼｷｶﾞｲｼｬ\",\"\"),\"ｶﾌﾞｼｷｶｲｼｬ\",\"\"),\" \",\"\"),\"(ｶ)\",\"\"),\"ｶ)\",\"\"),\"(ｶ\",\"\")","v":""},null,"届出","[入力規則]\n・200桁以内\n・半角のみ","[関数]\n届出書上の該当箇所を転記する。",null,"200\n（マス管に合わせる）","法人","条件必須","法人",200,"A","以下を全て満たす場合、入力必須。\n・更新区分＝「1」(新規)\n・操作区分＝「INS」(登録)",1]
[null,25,"項目変更フラグ（外株組織カナ略称）","-","F","db26",1,25,null,null,"規定","届出非表示項目","規定値（\"\"(Null値))",null,1,"法人","任意","法人",1,"Cb",null,1]
[null,26,"外株組織カナ略称","〇","A","db26",1,26,null,null,"届出","[入力規則]\n28桁","[関数]\n届出書上の該当箇所を転記する。",null,28,"法人","任意","法人",28,"Ch",null,1]
[null,27,"項目変更フラグ（本店所在地）","-","F","db26",1,27,null,null,"規定","届出非表示項目","規定値（\"\"(Null値))",null,1,"法人","任意","法人",1,"Cb",null,1]
[null,28,"本店所在地","〇","A","db26",1,28,null,null,"届出","[入力規則]\n全角200文字以内","[関数]\n届出書上の該当箇所を転記する。","・建物名の取り扱いについては、追って検討（印鑑証明や登記事項証明の要否が未決であるため）","200\n（マス管に合わせる）","法人","任意","法人",200,"M",null,1]
[null,29,"項目変更フラグ（組織業種区分）","-","F","db26",1,29,null,null,"規定","届出非表示項目","規定値（\"\"(Null値))",null,1,"法人","任意","法人",1,"Cb",null,1]
[null,30,"組織業種区分","〇","A","db26",1,30,null,null,"補記","届出非表示項目","[入力規則]\n1桁",null,1,"法人","任意","法人",1,"Ca",null,1]
[null,31,"*組織業種区分名称","-","T","db26",1,31,null,null,"規定","届出非表示項目","規定値（\"\"(Null値))",null,"LU","LU","対象外"]
[null,32,"項目変更フラグ（BICコード）","-","F","db26",1,32,null,null,"規定","届出非表示項目","規定値（\"\"(Null値))",null,1,"法人","任意","法人",1,"Cb",null,1]
[null,33,"BICコード","〇","A","db26",1,33,null,null,"届出","[入力規則]\n8桁\n又は\n11桁","[関数]\n届出書上の該当箇所を転記する。",null,12,"法人","任意","法人",11,"Ca",null,1]
[null,34,"項目変更フラグ（口座管理機関コード）","-","F","db26",1,34,null,null,"規定","届出非表示項目","規定値（\"\"(Null値))",null,1,"法人","任意","法人",1,"Cb",null,1]
[null,35,"口座管理機関コード","〇","A","db26",1,35,null,null,"届出","[入力規則]\n5桁","[関数]\n届出書上の該当箇所を転記する。","コードが0から始まる場合を踏まえるとセルを文字列とする必要があるが、文字列だと「数字のみ」の制御をかけられないため、桁数のみ制御する。",5,"法人","任意","法人",5,9,null,1]
[null,36,"項目変更フラグ（代理人コード）","-","F","db26",1,36,null,null,"規定","届出非表示項目","規定値（\"\"(Null値))",null,1,"法人","任意","法人",1,"Cb",null,1]
[null,37,"代理人コード","〇","A","db26",1,37,null,null,"届出","[入力規則]\n5桁","[関数]\n届出書上の該当箇所を転記する。","コードが0から始まる場合を踏まえるとセルを文字列とする必要があるが、文字列だと「数字のみ」の制御をかけられないため、桁数のみ制御する。",5,"法人","任意","法人",5,9,null,1]
[null,38,"項目変更フラグ（受託会社コード）","-","F","db26",1,38,null,null,"規定","届出非表示項目","規定値（\"\"(Null値))",null,1,"法人","任意","法人",1,"Cb",null,1]
[null,39,"受託会社コード","〇","A","db26",1,39,null,null,"届出","[入力規則]\n5桁","[関数]\n届出書上の該当箇所を転記する。","コードが0から始まる場合を踏まえるとセルを文字列とする必要があるが、文字列だと「数字のみ」の制御をかけられないため、桁数のみ制御する。",5,"法人","任意","法人",5,9,null,1]
[null,40,"項目変更フラグ（統一金融機関コード）","-","F","db26",1,40,null,null,"規定","届出非表示項目","規定値（\"\"(Null値))",null,1,"法人","任意","法人",1,"Cb",null,1]
[null,41,"統一金融機関コード","〇","A","db26",1,41,null,null,"届出","[入力規則]\n4桁","[関数]\n届出書上の該当箇所を転記する。","コードが0から始まる場合を踏まえるとセルを文字列とする必要があるが、文字列だと「数字のみ」の制御をかけられないため、桁数のみ制御する。",4,"法人","任意","法人",4,9,null,1]
[null,42,"項目変更フラグ（利用会社コード）","-","F","db26",1,42,null,null,"規定","届出非表示項目","規定値（\"\"(Null値))",null,1,"法人","任意","法人",1,"Cb",null,1]
[null,43,"利用会社コード","〇","A","db26",1,43,null,null,"届出","[入力規則]\n8桁以内","[関数]\n届出書上の該当箇所を転記する。","コードが0から始まる場合を踏まえるとセルを文字列とする必要があるが、文字列だと「数字のみ」の制御をかけられないため、桁数のみ制御する。",8,"法人","任意","法人",8,"Ca",null,1]
[null,44,"項目変更フラグ（国際機関フラグ）","-","F","db26",1,44,null,null,"規定","届出非表示項目","規定値（\"\"(Null値))",null,1,"法人","任意","法人",1,"Cb",null,1]
[null,45,"国際機関フラグ","〇","A","db26",1,45,0,null,"規定","届出非表示項目","規定値（\"0\")",null,1,"法人","条件必須","法人",1,9,"以下を全て満たす場合、入力必須。\n・更新区分＝「1」(新規)\n・操作区分＝「INS」(登録)",1]
[null,46,"*法人番号","-","N","db26",1,46,null,null,"届出","[入力規則]\n13桁","[関数]\n届出書上の該当箇所を転記する。","・コードが0から始まる場合を踏まえるとセルを文字列とする必要があるが、文字列だと「数字のみ」の制御をかけられないため、桁数のみ制御する。\n・左記番号自体で法人の同定はしない(2018/11/8仮決定)\n次のいずれかの手段で正確性を確認する。\n・法人番号サイトに当該番号を入力、検索し、表示された内容と突合する。\n・同時に提出される証明書類に記載された「会社法人等番号」を元に法人番号を生成し、突合する方法。",13,"法人","対象外",null,null,null,null,1]
[null,47,"*GIIN","-","N","db26",1,47,null,null,"届出","[入力規則]\n6桁,5桁,2桁,3桁で分割入力","[関数]\n届出書上の該当箇所を転記し、カンマで結合する。","・IRSのサイト（https://apps.irs.gov/app/fatcaFfiList/flu.jsf）と突合。",19,"法人","対象外",null,null,null,null,1]
[null,48,"*組織英字略称","-","N","db26",1,48,null,null,"届出","[入力規則]\n28桁","[関数]\n届出書上の該当箇所を転記する。","・DTC宛List「CSD Participant List」用の項目\n・届出書に最大文字数（35文字）や、組織英字名称と同一になっても良い旨等を記載する想定",28,"法人","対象外",null,null,null,null,1]
[null,49,"*代表者役職名","-","N","db26",1,49,null,null,"届出","[入力規則]\n半角カナ30桁","[関数]\n届出書上の該当箇所を転記する。","・CO上文字数は仮置き",30,"法人","対象外",null,null,null,null,1]
[null,50,"*代表者カナ役職名","-","N","db26",1,50,null,null,"届出","[入力規則]\n30桁","[関数]\n届出書上の該当箇所を転記する。","・CO上文字数は仮置き",30,"法人","対象外",null,null,null,null,1]
[null,51,"*代表者氏名","-","N","db26",1,51,null,null,"届出","[入力規則]\n30桁","[関数]\n届出書上の該当箇所を転記する。","・CO上文字数は仮置き",30,"法人","対象外",null,null,null,null,1]
[null,52,"*代表者カナ氏名","-","N","db26",1,52,null,null,"届出","[入力規則]\n30桁","[関数]\n届出書上の該当箇所を転記する。","・CO上文字数は仮置き",30,"法人","対象外",null,null,null,null,1]
[null,53,"*在日支店所在地","-","N","db26",1,53,null,null,"届出","[入力規則]\n200桁","[関数]\n届出書上の該当箇所を転記する。","・CO上文字数は仮置き",200,"法人","対象外",null,null,null,null,1]
[null,54,"*設立地（country）","-","N","db26",1,54,null,null,"届出","[入力規則]\n全角50文字以内","[関数]\n届出書上の該当箇所を転記する。",null,50,"法人","対象外",null,null,null,null,1]
[null,55,"*制度外字の有無及び有の場合の置換方法","-","N","db26",1,55,null,null,"届出","[入力規則]\n50桁","[関数]\n届出書上の該当箇所を転記する。","・本項目の記載内容を元に、株通部において手オペを実施する。",50,"法人","対象外",null,null,null,null,1]
[null,56,"*マス管csv投入予定日","-","T","db26",1,56,{"$f":"IF(INDIRECT(\"補記シート!D19\")=\"\",\"\",INDIRECT(\"補記シート!D19\"))","v":""},null,"補記","届出非表示項目","[入力規則]\nYYYY/MM/DD",null,10,"法人","対象外",null,null,null,null,1]
[null,57,"*利用開始年月日（ＣＯ用）","-","N","db26",1,57,null,null,"コピー","届出非表示項目","[関数]\n#12の利用開始年月日がNull値でない場合には、#12の利用開始日8桁の適切な位置に/を挿入し、10桁の日付とする。\n#12の利用開始日がNull値の場合には、Null値を設定する。",null,10,"法人","対象外",null,null,null,null,1]
[null,58,"*レコード開始年月日（ＣＯ用）","-","T","db26",1,58,{"$f":"LEFT(I21,4)&\"/\"&MID(I21,5,2)&\"/\"&RIGHT(I21,2)","v":"1900/01/02"},null,"コピー","届出非表示項目","[関数]\n#9の適用開始日の日付を取得し、YYYY/MM/DD形式で格納する。",null,10,"法人","対象外",null,null,null,null,1]
[null,59,"*レコード終了年月日（ＣＯ用）","-","T","db26",1,59,"2999-12-31",null,"規定","届出非表示項目","規定値（\"2999/12/31\")","変更時には、ツールの機能により本項目を規定値以外の値（直後の最新レコードの適用開始日の前日）に上書きする。",10,"法人","対象外",null,null,null,null,1]
[null,60,"*利用終了年月日（ＣＯ用）","-","T","db26",1,60,"2999-12-31",null,"規定","届出非表示項目","規定値（\"2999/12/31\")",null,10,"法人","対象外",null,null,null,null,1]

{"sheet":"補記シート","index":3,"n_rows":218,"n_cols":11,"rows_kept":218,"cut":false,"hidden":true,"merged":[]}
[]
[]
[]
[]
[]
[]
[]
[]
[]
[]
[]
["補記シート"]
[]
[]
[]
[]
["項目名","登録先DB名称","登録先DB\nコード","参加室補記データ","入力する値の説明",null,"ＳＢ機構加入者","シス投入データ",null,"項目名","他部署等補記データ"]
["会社コード","法人","db26",null,"【補記必須】\n7桁で記載、下２桁は00のみを許容",null,"会社コード"]
["*マス管csv投入予定日","法人","db26",null,"YYYY/MM/DD形式で記載",null,"適用開始年月日"]
[null,null,null,null,null,null,"統合ＷＥＢ代行会社会社コード"]
[null,null,null,null,null,null,"統合ＷＥＢ代行会社予備会社コード"]
[]
[]
[null,null,null,null,null,null,"ＣＰ機構加入者","シス投入データ"]
[null,null,null,null,null,null,"会社コード"]
[null,null,null,null,null,null,"適用開始年月日"]
[null,null,null,null,null,null,"統合ＷＥＢ代行会社会社コード"]
[null,null,null,null,null,null,"統合ＷＥＢ代行会社予備会社コード"]
[]
[]
[null,null,null,null,null,null,"投信機構加入者","シス投入データ"]
[null,null,null,null,null,null,"会社コード"]
[null,null,null,null,null,null,"適用開始年月日"]
[null,null,null,null,null,null,"銘柄情報計算会社会社コード"]
[]
[]
[null,null,null,null,null,null,"口座系","シス投入データ"]
[null,null,null,null,null,null,"会社コード"]
[null,null,null,null,null,null,"口座系番号"]
[null,null,null,null,null,null,"適用開始年月日"]
[null,null,null,null,null,null,"統合ＷＥＢ代行会社会社コード"]
[null,null,null,null,null,null,"統合ＷＥＢ代行会社予備会社コード"]
[]
[]
[null,null,null,null,null,null,"株式等口座","シス投入データ"]
[null,null,null,null,null,null,"会社コード"]
[null,null,null,null,null,null,"区分口座コード"]
[null,null,null,null,null,null,"適用開始年月日"]
[null,null,null,null,null,null,"接続会社利用フラグ"]
[null,null,null,null,null,null,"ＭＪ夜間バッチ結果配信フラグ"]
[null,null,null,null,null,null,"口座振替計算会社会社コード"]
[null,null,null,null,null,null,"株主通知計算会社会社コード"]
[null,null,null,null,null,null,"元利金計算会社会社コード"]
[null,null,null,null,null,null,"統合ＷＥＢ代行会社会社コード"]
[null,null,null,null,null,null,"統合ＷＥＢ代行会社予備会社コード"]
[null,null,null,null,null,null,"加入者ＷＥＢ代行会社会社コード"]
[]
[]
[null,null,null,null,null,null,"外株口座","シス投入データ"]
[null,null,null,null,null,null,"会社コード"]
[null,null,null,null,null,null,"区分口座コード"]
[null,null,null,null,null,null,"適用開始年月日"]
[null,null,null,null,null,null,"計算会社会社コード"]
[]
[]
[null,null,null,null,null,null,"ＳＢ口座","シス投入データ"]
[null,null,null,null,null,null,"会社コード"]
[null,null,null,null,null,null,"区分口座コード"]
[null,null,null,null,null,null,"適用開始年月日"]
[null,null,null,null,null,null,"接続会社利用フラグ"]
[null,null,null,null,null,null,"ＭＪ夜間バッチ結果配信フラグ"]
[null,null,null,null,null,null,"口座振替計算会社会社コード"]
[null,null,null,null,null,null,"元利金計算会社会社コード"]
[null,null,null,null,null,null,"銘柄情報計算会社会社コード"]
[]
[]
[null,null,null,null,null,null,"ＣＰ口座","シス投入データ"]
[null,null,null,null,null,null,"会社コード"]
[null,null,null,null,null,null,"区分口座コード"]
[null,null,null,null,null,null,"適用開始年月日"]
[null,null,null,null,null,null,"接続会社利用フラグ"]
[null,null,null,null,null,null,"ＭＪ夜間バッチ結果配信フラグ"]
[null,null,null,null,null,null,"計算会社会社コード"]
[]
[]
[null,null,null,null,null,null,"投信口座","シス投入データ"]
[null,null,null,null,null,null,"会社コード"]
[null,null,null,null,null,null,"区分口座コード"]
[null,null,null,null,null,null,"適用開始年月日"]
[null,null,null,null,null,null,"接続会社利用フラグ"]
[null,null,null,null,null,null,"ＭＪ夜間バッチ結果配信フラグ"]
[null,null,null,null,null,null,"口座振替計算会社会社コード"]
[null,null,null,null,null,null,"統合ＷＥＢ代行会社会社コード"]
[null,null,null,null,null,null,"統合ＷＥＢ代行会社予備会社コード"]
[]
[]
[null,null,null,null,null,null,"株式等代理人","シス投入データ"]
[null,null,null,null,null,null,"会社コード"]
[null,null,null,null,null,null,"適用開始年月日"]
[null,null,null,null,null,null,"接続会社利用フラグ"]
[null,null,null,null,null,null,"口座振替計算会社会社コード"]
[null,null,null,null,null,null,"社債権者計算会社会社コード"]
[null,null,null,null,null,null,"元利金計算会社会社コード"]
[null,null,null,null,null,null,"統合ＷＥＢ代行会社会社コード"]
[null,null,null,null,null,null,"統合ＷＥＢ代行会社予備会社コード"]
[]
[]
[null,null,null,null,null,null,"ＳＢ代理人","シス投入データ"]
[null,null,null,null,null,null,"会社コード"]
[null,null,null,null,null,null,"適用開始年月日"]
[null,null,null,null,null,null,"接続会社利用フラグ"]
[null,null,null,null,null,null,"元利金計算会社会社コード"]
[null,null,null,null,null,null,"銘柄情報計算会社会社コード"]
[null,null,null,null,null,null,"統合ＷＥＢ代行会社会社コード"]
[null,null,null,null,null,null,"統合ＷＥＢ代行会社予備会社コード"]
[]
[]
[null,null,null,null,null,null,"ＣＰ代理人","シス投入データ"]
[null,null,null,null,null,null,"会社コード"]
[null,null,null,null,null,null,"適用開始年月日"]
[null,null,null,null,null,null,"接続会社利用フラグ"]
[]
[]
[null,null,null,null,null,null,"株式等資金決済会社","シス投入データ"]
[null,null,null,null,null,null,"会社コード"]
[null,null,null,null,null,null,"適用開始年月日"]
[null,null,null,null,null,null,"資金決済会社用接続会社利用フラグ"]
[null,null,null,null,null,null,"計算会社会社コード"]
[null,null,null,null,null,null,"資金決済会社用統合ＷＥＢ代行会社会社コード"]
[null,null,null,null,null,null,"資金決済会社用統合ＷＥＢ代行会社予備会社コード"]
[null,null,null,null,null,null,"払込取扱銀行用接続会社利用フラグ"]
[null,null,null,null,null,null,"払込取扱銀行用統合ＷＥＢ代行会社会社コード"]
[null,null,null,null,null,null,"払込取扱銀行用統合ＷＥＢ代行会社予備会社コード"]
[]
[]
[null,null,null,null,null,null,"ＳＢ資金決済会社","シス投入データ"]
[null,null,null,null,null,null,"会社コード"]
[null,null,null,null,null,null,"適用開始年月日"]
[null,null,null,null,null,null,"接続会社利用フラグ"]
[null,null,null,null,null,null,"計算会社会社コード"]
[]
[]
[null,null,null,null,null,null,"ＣＰ資金決済会社","シス投入データ"]
[null,null,null,null,null,null,"会社コード"]
[null,null,null,null,null,null,"適用開始年月日"]
[null,null,null,null,null,null,"接続会社利用フラグ"]
[]
[]
[null,null,null,null,null,null,"投信資金決済会社","シス投入データ"]
[null,null,null,null,null,null,"会社コード"]
[null,null,null,null,null,null,"適用開始年月日"]
[null,null,null,null,null,null,"接続会社利用フラグ"]
[null,null,null,null,null,null,"統合ＷＥＢ代行会社会社コード"]
[null,null,null,null,null,null,"統合ＷＥＢ代行会社予備会社コード"]
[]
[]
[null,null,null,null,null,null,"投信受託会社","シス投入データ"]
[null,null,null,null,null,null,"会社コード"]
[null,null,null,null,null,null,"適用開始年月日"]
[null,null,null,null,null,null,"接続会社利用フラグ"]
[null,null,null,null,null,null,"ＭＪ夜間バッチ結果配信フラグ"]
[null,null,null,null,null,null,"計算会社会社コード"]
[null,null,null,null,null,null,"統合ＷＥＢ代行会社会社コード"]
[null,null,null,null,null,null,"統合ＷＥＢ代行会社予備会社コード"]
[]
[]
[null,null,null,null,null,null,"株式等発行者","シス投入データ"]
[null,null,null,null,null,null,"会社コード"]
[null,null,null,null,null,null,"適用開始年月日"]
[null,null,null,null,null,null,"統合ＷＥＢ代行会社会社コード"]
[null,null,null,null,null,null,"統合ＷＥＢ代行会社予備会社コード"]
[]
[]
[null,null,null,null,null,null,"ＣＰ発行者","シス投入データ"]
[null,null,null,null,null,null,"会社コード"]
[null,null,null,null,null,null,"適用開始年月日"]
[null,null,null,null,null,null,"接続会社利用フラグ"]
[]
[]
[null,null,null,null,null,null,"投信発行者","シス投入データ"]
[null,null,null,null,null,null,"会社コード"]
[null,null,null,null,null,null,"適用開始年月日"]
[null,null,null,null,null,null,"接続会社利用フラグ"]
[null,null,null,null,null,null,"ＭＪ夜間バッチ結果配信フラグ"]
[null,null,null,null,null,null,"計算会社会社コード"]
[null,null,null,null,null,null,"統合ＷＥＢ代行会社会社コード"]
[null,null,null,null,null,null,"統合ＷＥＢ代行会社予備会社コード"]
[]
[]
[null,null,null,null,null,null,"ＴＡ","シス投入データ"]
[null,null,null,null,null,null,"会社コード"]
[null,null,null,null,null,null,"適用開始年月日"]
[null,null,null,null,null,null,"接続会社利用フラグ"]
[null,null,null,null,null,null,"計算会社会社コード"]
[null,null,null,null,null,null,"統合ＷＥＢ代行会社会社コード"]
[null,null,null,null,null,null,"統合ＷＥＢ代行会社予備会社コード"]
[]
[]
[null,null,null,null,null,null,"株式事務取扱機関","シス投入データ"]
[null,null,null,null,null,null,"会社コード"]
[null,null,null,null,null,null,"適用開始年月日"]
[null,null,null,null,null,null,"計算会社会社コード"]
[]
[]
[null,null,null,null,null,null,"決済照合利用会社","シス投入データ"]
[null,null,null,null,null,null,"会社コード"]
[null,null,null,null,null,null,"適用開始年月日"]
[null,null,null,null,null,null,"国内取引株式・ＣＢ接続会社会社コード"]
[null,null,null,null,null,null,"国内取引株式貸借接続会社会社コード"]
[null,null,null,null,null,null,"国内取引国債接続会社会社コード"]
[null,null,null,null,null,null,"国内取引一般債接続会社会社コード"]
[null,null,null,null,null,null,"国内取引短期社債接続会社会社コード"]
[null,null,null,null,null,null,"国内取引先物・オプション接続会社会社コード"]
[null,null,null,null,null,null,"国内取引投資信託接続会社会社コード"]
[null,null,null,null,null,null,"非居住者取引株式・ＣＢ接続会社会社コード"]
[null,null,null,null,null,null,"非居住者取引国債接続会社会社コード"]
[null,null,null,null,null,null,"非居住者取引一般債接続会社会社コード"]
[null,null,null,null,null,null,"非居住者取引短期社債接続会社会社コード"]

{"sheet":"祝日一覧","index":4,"n_rows":307,"n_cols":2,"rows_kept":307,"cut":false,"hidden":true,"merged":[]}
["2016-08-11","山の日"]
["2016-09-19","敬老の日"]
["2016-09-22","秋分の日"]
["2016-10-10","体育の日"]
["2016-11-03","文化の日"]
["2016-11-23","勤労感謝の日"]
["2016-12-23","天皇誕生日"]
["2016-12-31"]
["2017-01-01","元日"]
["2017-01-02","振替休日"]
["2017-01-03"]
["2017-01-09","成人の日"]
["2017-02-11","建国記念の日"]
["2017-03-20","春分の日"]
["2017-04-29","昭和の日"]
["2017-05-03","憲法記念日"]
["2017-05-04","みどりの日"]
["2017-05-05","子供の日"]
["2017-07-17","海の日"]
["2017-08-11","山の日"]
["2017-09-18","敬老の日"]
["2017-09-23","秋分の日"]
["2017-10-09","体育の日"]
["2017-11-03","文化の日"]
["2017-11-23","勤労感謝の日"]
["2017-12-23","天皇誕生日"]
["2017-12-31"]
["2018-01-01","元日"]
["2018-01-02"]
["2018-01-03"]
["2018-01-08","成人の日"]
["2018-02-11","建国記念の日"]
["2018-02-12","振替休日"]
["2018-03-21","春分の日"]
["2018-04-29","昭和の日"]
["2018-04-30","振替休日"]
["2018-05-03","憲法記念日"]
["2018-05-04","みどりの日"]
["2018-05-05","子供の日"]
["2018-07-16","海の日"]
["2018-08-11","山の日"]
["2018-09-17","敬老の日"]
["2018-09-23","秋分の日"]
["2018-09-24","振替休日"]
["2018-10-08","体育の日"]
["2018-11-03","文化の日"]
["2018-11-23","勤労感謝の日"]
["2018-12-23","天皇誕生日"]
["2018-12-24","振替休日"]
["2018-12-31"]
["2019-01-01","元日"]
["2019-01-02"]
["2019-01-03"]
["2019-01-14","成人の日"]
["2019-02-11","建国記念の日"]
["2019-03-21","春分の日"]
["2019-04-29","昭和の日"]
["2019-04-30","祝日法第3条第3項に基づく休日"]
["2019-05-01","天皇の即位の日"]
["2019-05-02","祝日法第3条第3項に基づく休日"]
["2019-05-03","憲法記念日"]
["2019-05-04","みどりの日"]
["2019-05-05","こどもの日"]
["2019-05-06","振替休日"]
["2019-07-15","海の日"]
["2019-08-11","山の日"]
["2019-08-12","振替休日"]
["2019-09-16","敬老の日"]
["2019-09-23","秋分の日"]
["2019-10-14","体育の日"]
["2019-10-22","即位礼正殿の儀が行われる日"]
["2019-11-03","文化の日"]
["2019-11-04","振替休日"]
["2019-11-23","勤労感謝の日"]
["2019-12-31"]
["2020-01-01","元日"]
["2020-01-02"]
["2020-01-03"]
["2020-01-13","成人の日"]
["2020-02-11","建国記念の日"]
["2020-02-23","天皇誕生日"]
["2020-02-24","振替休日"]
["2020-03-20","春分の日"]
["2020-04-29","昭和の日"]
["2020-05-03","憲法記念日"]
["2020-05-04","みどりの日"]
["2020-05-05","こどもの日"]
["2020-05-06","振替休日"]
["2020-07-23","海の日"]
["2020-07-24","スポーツの日"]
["2020-08-10","山の日"]
["2020-09-21","敬老の日"]
["2020-09-22","秋分の日"]
["2020-11-03","文化の日"]
["2020-11-23","勤労感謝の日"]
["2020-12-31"]
["2021-01-01","元日"]
["2021-01-02"]
["2021-01-03"]
["2021-01-11","成人の日"]
["2021-02-11","建国記念の日"]
["2021-02-23","天皇誕生日"]
["2021-03-20","春分の日"]
["2021-04-29","昭和の日"]
["2021-05-03","憲法記念日"]
["2021-05-04","みどりの日"]
["2021-05-05","こどもの日"]
["2021-07-22","海の日"]
["2021-07-23","スポーツの日"]
["2021-08-08","山の日"]
["2021-08-09","振替休日"]
["2021-09-20","敬老の日"]
["2021-09-23","秋分の日"]
["2021-11-03","文化の日"]
["2021-11-23","勤労感謝の日"]
["2021-12-31"]
["2022-01-01","元日"]
["2022-01-02"]
["2022-01-03"]
["2022-01-10","成人の日"]
["2022-02-11","建国記念の日"]
["2022-02-23","天皇誕生日"]
["2022-03-21","春分の日"]
["2022-04-29","昭和の日"]
["2022-05-03","憲法記念日"]
["2022-05-04","みどりの日"]
["2022-05-05","こどもの日"]
["2022-07-18","海の日"]
["2022-08-11","山の日"]
["2022-09-19","敬老の日"]
["2022-09-23","秋分の日"]
["2022-10-10","スポーツの日"]
["2022-11-03","文化の日"]
["2022-11-23","勤労感謝の日"]
["2022-12-31"]
["2023-01-01","元日"]
["2023-01-02"]
["2023-01-03"]
["2023-01-09","成人の日"]
["2023-02-11","建国記念の日"]
["2023-02-23","天皇誕生日"]
["2023-03-21","春分の日"]
["2023-04-29","昭和の日"]
["2023-05-03","憲法記念日"]
["2023-05-04","みどりの日"]
["2023-05-05","こどもの日"]
["2023-07-17","海の日"]
["2023-08-11","山の日"]
["2023-09-18","敬老の日"]
["2023-09-23","秋分の日"]
["2023-10-09","スポーツの日"]
["2023-11-03","文化の日"]
["2023-11-23","勤労感謝の日"]
["2023-12-31"]
["2024-01-01","元日"]
["2024-01-02"]
["2024-01-03"]
["2024-01-08","成人の日"]
["2024-02-11","建国記念の日"]
["2024-02-12","振替休日"]
["2024-02-23","天皇誕生日"]
["2024-03-20","春分の日"]
["2024-04-29","昭和の日"]
["2024-05-03","憲法記念日"]
["2024-05-04","みどりの日"]
["2024-05-05","こどもの日"]
["2024-05-06","振替休日"]
["2024-07-15","海の日"]
["2024-08-11","山の日"]
["2027-08-12","振替休日"]
["2024-09-16","敬老の日"]
["2024-09-22","秋分の日"]
["2024-09-23","振替休日"]
["2024-10-14","スポーツの日"]
["2024-11-03","文化の日"]
["2024-11-04","振替休日"]
["2024-11-23","勤労感謝の日"]
["2024-12-31"]
["2025-01-01","元日"]
["2025-01-02"]
["2025-01-03"]
["2025-01-13","成人の日"]
["2025-02-11","建国記念の日"]
["2025-02-23","天皇誕生日"]
["2025-02-24","振替休日"]
["2025-03-20","春分の日"]
["2025-04-29","昭和の日"]
["2025-05-03","憲法記念日"]
["2025-05-04","みどりの日"]
["2025-05-05","こどもの日"]
["2025-05-06","振替休日"]
["2025-07-21","海の日"]
["2025-08-11","山の日"]
["2025-09-15","敬老の日"]
["2025-09-23","秋分の日"]
["2025-10-13","スポーツの日"]
["2025-11-03","文化の日"]
["2025-11-23","勤労感謝の日"]
["2025-11-24","振替休日"]
["2025-12-31"]
["2026-01-01","元日"]
["2026-01-02"]
["2026-01-03"]
["2026-01-12","成人の日"]
["2026-02-11","建国記念の日"]
["2026-02-23","天皇誕生日"]
["2026-03-20","春分の日"]
["2026-04-29","昭和の日"]
["2026-05-03","憲法記念日"]
["2026-05-04","みどりの日"]
["2026-05-05","こどもの日"]
["2026-05-06","振替休日"]
["2026-07-20","海の日"]
["2026-08-11","山の日"]
["2026-09-21","敬老の日"]
["2026-09-22","国民の休日"]
["2025-09-23","秋分の日"]
["2026-10-12","スポーツの日"]
["2026-11-03","文化の日"]
["2026-11-23","勤労感謝の日"]
["2026-12-31"]
["2027-01-01","元日"]
["2027-01-02"]
["2027-01-03"]
["2027-01-11","成人の日"]
["2027-02-11","建国記念の日"]
["2027-02-23","天皇誕生日"]
["2027-03-21","春分の日"]
["2027-03-22","振替休日"]
["2027-04-29","昭和の日"]
["2027-05-03","憲法記念日"]
["2027-05-04","みどりの日"]
["2027-05-05","こどもの日"]
["2027-07-19","海の日"]
["2027-08-11","山の日"]
["2027-09-20","敬老の日"]
["2027-09-23","秋分の日"]
["2027-10-11","スポーツの日"]
["2027-11-03","文化の日"]
["2027-11-23","勤労感謝の日"]
["2027-12-31"]
["2028-01-01","元日"]
["2028-01-02"]
["2028-01-03"]
["2028-01-10","成人の日"]
["2028-02-11","建国記念の日"]
["2028-02-23","天皇誕生日"]
["2028-03-20","春分の日"]
["2028-04-29","昭和の日"]
["2028-05-03","憲法記念日"]
["2028-05-04","みどりの日"]
["2028-05-05","こどもの日"]
["2028-07-17","海の日"]
["2028-08-11","山の日"]
["2028-09-18","敬老の日"]
["2028-09-22","秋分の日"]
["2028-10-09","スポーツの日"]
["2028-11-03","文化の日"]
["2028-11-23","勤労感謝の日"]
["2028-12-31"]
["2029-01-01","元日"]
["2029-01-02"]
["2029-01-03"]
["2029-01-08","成人の日"]
["2029-02-11","建国記念の日"]
["2029-02-12","振替休日"]
["2029-02-23","天皇誕生日"]
["2029-03-20","春分の日"]
["2029-04-29","昭和の日"]
["2029-04-30","振替休日"]
["2029-05-03","憲法記念日"]
["2029-05-04","みどりの日"]
["2029-05-05","こどもの日"]
["2029-07-16","海の日"]
["2029-08-11","山の日"]
["2029-09-17","敬老の日"]
["2029-09-23","秋分の日"]
["2029-09-24","振替休日"]
["2029-10-08","スポーツの日"]
["2029-11-03","文化の日"]
["2029-11-23","勤労感謝の日"]
["2029-12-31"]
["2030-01-01","元日"]
["2030-01-02"]
["2030-01-03"]
["2030-01-14","成人の日"]
["2030-02-11","建国記念の日"]
["2030-02-23","天皇誕生日"]
["2030-03-20","春分の日"]
["2030-04-29","昭和の日"]
["2030-05-03","憲法記念日"]
["2030-05-04","みどりの日"]
["2030-05-05","こどもの日"]
["2030-05-06","振替休日"]
["2030-07-15","海の日"]
["2030-08-11","山の日"]
["2030-08-12","振替休日"]
["2030-09-16","敬老の日"]
["2030-09-23","秋分の日"]
["2030-10-14","スポーツの日"]
["2030-11-03","文化の日"]
["2030-11-04","振替休日"]
["2030-11-23","勤労感謝の日"]
["2030-12-31"]
["2031-01-01","元日"]
["2031-01-02"]
["2031-01-03"]